bitfinex/quotes_BTCUSD_20251205
["timestamp","ask_amount","ask_price","bid_price","bid_amount"]
[1764954365190,0.00161287,88953.0,88952.0,0.22484036]
[1764954365388,0.00161287,88953.0,88948.0,0.01124252]
[1764954365389,0.01124252,88948.0,88941.0,0.0112434]
[1764954365652,0.0393475,88951.0,88946.0,0.01124277]
[1764954365937,0.0953,88961.0,88942.0,0.22486379]
[1764954365938,0.0112405,88964.0,88958.0,0.01124125]
[1764954366284,0.00161287,88967.0,88965.0,0.22480621]
[1764954366285,0.32461287,88967.0,88965.0,0.22480621]
[1764954366486,0.32461287,88967.0,88960.0,0.011241]
[1764954366487,0.323,88965.0,88962.0,0.23605429]
[1764954366699,0.323,88965.0,88963.0,0.22481134]
[1764954367485,0.00161287,88967.0,88966.0,0.22480498]
[1764954368206,0.06533287,88967.0,88965.0,0.2248075]
[1764954368830,0.06633287,88967.0,88965.0,0.2248075]
[1764954369044,0.00361287,88967.0,88965.0,0.2248075]
[1764954369382,0.00261287,88967.0,88965.0,0.2248075]
[1764954369585,0.00361287,88967.0,88965.0,0.2248075]
[1764954370163,0.00261287,88967.0,88966.0,0.22480498]
[1764954370984,0.00261287,88967.0,88963.0,0.22492599]
[1764954370985,0.12211299,88967.0,88963.0,0.01135953]
[1764954371185,0.12211299,88967.0,88965.0,0.2248075]
[1764954371186,0.002,88967.0,88965.0,0.2248075]
[1764954371359,0.002,88967.0,88966.0,0.22480498]
[1764954371561,0.001,88967.0,88966.0,0.22480498]
[1764954371866,0.04957,88976.0,88974.0,0.22478464]
[1764954372066,0.22478224,88975.0,88971.0,0.23603104]
[1764954372405,0.07766746,88976.0,88972.0,0.23602927]
[1764954372406,0.27435181,88976.0,88972.0,0.23602927]
[1764954372633,0.01123911,88975.0,88972.0,0.23602865]
[1764954372764,0.04957,88976.0,88974.0,0.22478476]
[1764954372970,0.04957,88976.0,88972.0,0.01123949]
[1764954373240,0.02809778,88975.0,88971.0,0.01123961]
[1764954373443,0.02809778,88975.0,88970.0,0.01123974]
[1764954373444,0.01123923,88974.0,88970.0,0.01123974]
[1764954373652,0.23602499,88974.0,88972.0,0.22478961]
[1764954373803,0.02090731,88973.0,88971.0,0.22479056]
[1764954374025,0.02809841,88973.0,88972.0,0.22478982]
[1764954374231,0.02909778,88975.0,88974.0,0.22478476]
[1764954374648,0.02809778,88975.0,88972.0,0.2360292]
[1764954375129,0.02809778,88975.0,88974.0,0.22478476]
[1764954375532,0.01123923,88974.0,88970.0,0.23603254]
[1764954375734,0.01266,88971.0,88968.0,0.01123999]
[1764954376057,0.00106,88970.0,88969.0,0.22479731]
[1764954376272,0.06533287,88970.0,88963.0,0.00011891]
[1764954376475,0.2894429,88964.0,88963.0,0.00011891]
[1764954376684,0.31134689,88964.0,88963.0,0.00011891]
[1764954376828,0.13127686,88964.0,88963.0,0.00011891]
[1764954377030,0.38418814,88964.0,88963.0,0.00011891]
[1764954377250,0.13127686,88964.0,88963.0,0.22493147]
[1764954377480,0.35608689,88964.0,88963.0,0.00011891]
[1764954377699,0.06103,88948.0,88947.0,0.224853]
[1764954377910,0.01584045,88948.0,88947.0,0.22497194]
[1764954378056,0.15995045,88948.0,88947.0,0.22497194]
[1764954379072,0.03156,88958.0,88955.0,0.23607274]
[1764954379277,0.04280125,88958.0,88954.0,0.23607653]
[1764954379476,0.23608248,88952.0,88949.0,0.01124239]
[1764954379678,0.00094,88950.0,88949.0,0.23609033]
[1764954380127,0.09468,88950.0,88948.0,0.22485006]
[1764954380266,0.00094,88949.0,88948.0,0.22485006]
[1764954380600,0.00094,88949.0,88947.0,0.23621409]
[1764954380844,0.09561,88948.0,88947.0,0.23621459]
[1764954381040,0.09561,88948.0,88947.0,0.01136159]
[1764954381450,0.09561,88948.0,88947.0,0.00011894]
[1764954381690,0.01124151,88956.0,88950.0,0.01124227]
[1764954381889,0.33073501,88955.0,88950.0,0.23608729]
[1764954382106,0.01124176,88954.0,88952.0,0.22484004]
[1764954382305,0.09466,88954.0,88953.0,0.2360772]
[1764954382775,0.09561,88954.0,88953.0,0.22483783]
[1764954383153,0.09561,88954.0,88952.0,0.23608185]
[1764954383481,0.00095,88953.0,88952.0,0.23808185]
[1764954383625,0.00095,88953.0,88952.0,0.23608185]
[1764954384010,0.17934227,88953.0,88949.0,0.23608877]
[1764954384212,0.00094,88952.0,88951.0,0.2248424]
[1764954384367,0.03158,88952.0,88951.0,0.2248424]
[1764954384580,0.03158,88952.0,88947.0,0.00011894]
[1764954384581,0.22485047,88948.0,88947.0,0.00011894]
[1764954384756,0.61062047,88948.0,88947.0,0.00011894]
[1764954384961,0.64314047,88948.0,88947.0,0.00011894]
[1764954385802,0.64314047,88948.0,88947.0,0.00111894]
[1764954386044,0.64314047,88948.0,88947.0,0.00011894]
[1764954386179,0.75284553,88948.0,88947.0,0.00011894]
[1764954386389,0.75284553,88948.0,88947.0,0.00111894]
[1764954386586,0.64314047,88948.0,88947.0,0.00011894]
[1764954386820,0.66504446,88948.0,88947.0,0.00011894]
[1764954387033,0.64314047,88948.0,88947.0,0.00011894]
[1764954387178,0.41829,88948.0,88947.0,0.00011894]
[1764954387385,0.09529,88948.0,88947.0,0.22497194]
[1764954387785,0.323,88949.0,88948.0,0.22485047]
[1764954387995,0.23607708,88954.0,88951.0,0.23608276]
[1764954388270,0.35110472,88953.0,88950.0,0.01124227]
[1764954388457,0.22483266,88956.0,88952.0,0.23608237]
[1764954388675,0.03934572,88955.0,88950.0,0.01124227]
[1764954388877,0.06372,88951.0,88949.0,0.01124239]
[1764954389048,0.02810567,88950.0,88949.0,0.01124239]
[1764954389241,0.35456,88958.0,88956.0,0.22483001]
[1764954389441,0.03156,88958.0,88957.0,0.22482772]
[1764954389645,0.09466,88970.0,88957.0,0.22482772]
[1764954389646,0.02989566,88977.0,88968.0,0.01123999]
[1764954389885,0.04957,88983.0,88982.0,0.01123822]
[1764954390096,0.04957,88983.0,88982.0,0.2360003]
[1764954390747,0.04957,88983.0,88982.0,0.29852329]
[1764954390950,0.037005,88993.0,88990.0,0.23598059]
[1764954391154,0.037005,88993.0,88984.0,0.01123797]
[1764954391155,0.02809241,88992.0,88986.0,0.01123772]
[1764954391327,0.02809241,88992.0,88984.0,0.01123797]
[1764954391328,0.07083784,88985.0,88982.0,0.00011894]
[1764954391528,0.0006,88983.0,88982.0,0.00011894]
[1764954392187,0.10960924,88983.0,88982.0,0.00311894]
[1764954392389,0.08770525,88983.0,88982.0,0.00311894]
[1764954392543,0.08770525,88983.0,88982.0,0.00011894]
[1764954392965,0.0006,88983.0,88982.0,0.22488349]
[1764954393130,0.34819,88989.0,88985.0,0.23599334]
[1764954393518,0.34819,88989.0,88986.0,0.01123772]
[1764954393729,0.0596,88988.0,88986.0,0.01123772]
[1764954393931,0.0596,88988.0,88986.0,0.23598996]
[1764954394147,0.0006,88987.0,88983.0,0.0112381]
[1764954394351,0.0006,88983.0,88982.0,0.00011894]
[1764954394558,0.03030812,88983.0,88982.0,0.00011894]
[1764954394734,0.08931812,88983.0,88982.0,0.00011894]
[1764954395073,0.08931812,88983.0,88982.0,0.00211894]
[1764954395567,0.00161287,88983.0,88982.0,0.00211894]
[1764954400318,0.00221287,88983.0,88982.0,0.00011894]
[1764954400537,0.06122287,88983.0,88982.0,0.00011894]
[1764954400723,0.08931812,88983.0,88982.0,0.00211894]
[1764954402127,0.08931812,88983.0,88982.0,0.22688349]
[1764954402306,0.00221287,88983.0,88982.0,0.22488349]
[1764954402593,0.00161287,88983.0,88982.0,0.22488349]
[1764954402799,0.00161287,88983.0,88982.0,0.22788349]
[1764954403000,0.00279287,88983.0,88982.0,0.00011894]
[1764954403152,0.11122211,88983.0,88982.0,0.22488349]
[1764954403395,0.11122211,88983.0,88982.0,0.00111894]
[1764954403711,0.33598414,88983.0,88982.0,0.00011894]
[1764954404064,0.33598414,88983.0,88982.0,0.00311894]
[1764954404065,0.30788889,88983.0,88982.0,0.00311894]
[1764954405013,0.63088889,88983.0,88982.0,0.00311894]
[1764954405629,0.88522174,88983.0,88982.0,0.00311894]
[1764954405835,0.88522174,88983.0,88982.0,0.00011894]
[1764954406147,0.8956444,88983.0,88982.0,0.00111894]
[1764954406304,0.8956444,88983.0,88982.0,0.00011894]
[1764954406722,0.01124239,88949.0,88942.0,0.01124328]
[1764954406918,0.04373,88942.0,88941.0,0.23611157]
[1764954407147,0.04373,88942.0,88941.0,0.00011902]
[1764954407420,0.39926399,88942.0,88941.0,0.00011902]
[1764954408185,0.41726399,88942.0,88941.0,0.00011902]
[1764954408396,0.23618031,88916.0,88911.0,0.0112472]
[1764954408597,0.22492212,88920.0,88911.0,0.00011915]
[1764954408598,0.29044016,88912.0,88911.0,0.00011915]
[1764954408857,0.05425,88912.0,88911.0,0.00011915]
[1764954409339,0.04373,88912.0,88911.0,0.00011915]
[1764954409569,0.04384,88912.0,88911.0,0.00311915]
[1764954409775,0.04373,88912.0,88911.0,0.00311915]
[1764954409902,0.04384,88912.0,88911.0,0.00011915]
[1764954410113,0.28695947,88912.0,88911.0,0.00011915]
[1764954410318,0.28695947,88912.0,88911.0,0.00411915]
[1764954410525,0.05426,88912.0,88911.0,0.00411915]
[1764954411499,0.06426,88912.0,88911.0,0.00411915]
[1764954412561,0.05373,88912.0,88911.0,0.00411915]
[1764954414037,0.01,88912.0,88911.0,0.00411915]
[1764954415363,0.01011,88912.0,88911.0,0.00411915]
[1764954415597,0.07232233,88912.0,88911.0,0.00411915]
[1764954415812,0.0739352,88912.0,88911.0,0.00411915]
[1764954416024,0.41883919,88912.0,88911.0,0.00411915]
[1764954416241,1.47591519,88912.0,88911.0,0.00411915]
[1764954416464,0.22501997,88881.0,88880.0,0.0104]
[1764954416684,0.05443,88881.0,88880.0,0.02204754]
[1764954416895,0.05443,88881.0,88880.0,0.24706926]
[1764954417112,0.0387,88882.0,88880.0,0.24706926]
[1764954417321,0.01124985,88890.0,88885.0,0.23625793]
[1764954417527,0.33424935,88894.0,88887.0,0.01125023]
[1764954417753,0.33424935,88894.0,88880.0,0.01079642]
[1764954417754,0.01125074,88883.0,88880.0,0.01079642]
[1764954417967,0.55056284,88881.0,88880.0,0.01079642]
[1764954418196,1.60764484,88881.0,88880.0,0.01079642]
[1764954418431,0.23634592,88853.0,88847.0,0.2251059]
[1764954418709,0.23633977,88856.0,88847.0,0.2251059]
[1764954418710,0.04002,88851.0,88850.0,0.00051916]
[1764954418917,0.22507568,88859.0,88853.0,0.22509046]
[1764954419123,0.01125416,88856.0,88852.0,0.01125467]
[1764954419327,0.01125403,88857.0,88852.0,0.01125467]
[1764954419567,0.323,88867.0,88863.0,0.01125327]
[1764954419785,0.01125213,88872.0,88867.0,0.01125277]
[1764954420019,0.323,88872.0,88862.0,0.0112534]
[1764954420227,0.01125239,88870.0,88858.0,0.01125391]
[1764954420434,0.04002,88858.0,88855.0,0.01125429]
[1764954420639,0.05127391,88858.0,88854.0,0.01125441]
[1764954420846,0.23634686,88853.0,88850.0,0.00051916]
[1764954421047,0.01125429,88855.0,88850.0,0.22561674]
[1764954421263,0.06075441,88854.0,88852.0,0.00529385]
[1764954421576,0.06075441,88854.0,88850.0,0.00051916]
[1764954421577,0.23634542,88853.0,88850.0,0.00051916]
[1764954421727,0.56999993,88851.0,88850.0,0.00051916]
[1764954422144,0.61949993,88851.0,88850.0,0.00051916]
[1764954422387,0.61949993,88851.0,88810.0,0.0004]
[1764954422388,0.01125834,88823.0,88818.0,0.01125897]
[1764954422508,0.01125758,88829.0,88813.0,0.22519197]
[1764954422509,0.01125745,88830.0,88824.0,0.01125821]
[1764954422708,0.36166,88837.0,88834.0,0.01125695]
[1764954422918,0.36166,88837.0,88834.0,0.23639556]
[1764954423143,0.01125695,88834.0,88830.0,0.01125745]
[1764954423389,0.323,88835.0,88833.0,0.22514155]
[1764954423606,0.01125581,88843.0,88837.0,0.01125657]
[1764954423860,0.04002,88858.0,88851.0,0.01125479]
[1764954424065,0.04002,88858.0,88857.0,0.22508074]
[1764954424274,0.04002,88858.0,88846.0,0.06252299]
[1764954424275,0.01125505,88849.0,88846.0,0.06252299]
[1764954424507,0.03866,88842.0,88841.0,0.23637734]
[1764954424729,0.03866,88842.0,88839.0,0.23638013]
[1764954424956,0.04991593,88842.0,88839.0,0.00011922]
[1764954425168,0.01174619,88840.0,88839.0,0.00011922]
[1764954425393,0.16468872,88840.0,88839.0,0.00011922]
[1764954425888,0.46578473,88840.0,88839.0,0.00011922]
[1764954426010,1.62778359,88840.0,88839.0,0.00011922]
[1764954426298,1.59866259,88840.0,88839.0,0.00011922]
[1764954426488,1.28596159,88840.0,88839.0,0.00011922]
[1764954427436,1.28496159,88840.0,88839.0,0.00211922]
[1764954427645,1.28796159,88840.0,88839.0,0.00211922]
[1764954427852,1.28796159,88840.0,88839.0,0.00011922]
[1764954428061,0.45189687,88840.0,88839.0,0.00011922]
[1764954428264,0.52381086,88840.0,88839.0,0.00011922]
[1764954428699,0.52281086,88840.0,88839.0,0.00011922]
[1764954428898,0.49790687,88840.0,88839.0,0.00011922]
[1764954429103,0.52081086,88840.0,88839.0,0.00011922]
[1764954429303,0.53081086,88840.0,88839.0,0.00011922]
[1764954429753,0.52081086,88840.0,88839.0,0.00011922]
[1764954430092,0.52781086,88840.0,88839.0,0.00011922]
[1764954430232,0.52081086,88840.0,88839.0,0.00011922]
[1764954430446,0.51981086,88840.0,88839.0,0.00011922]
[1764954430652,0.52781086,88840.0,88839.0,0.00011922]
[1764954430857,0.52781086,88840.0,88820.0,0.0004]
[1764954430858,0.54817197,88821.0,88820.0,0.0004]
[1764954431200,1.74875896,88821.0,88820.0,0.00051924]
[1764954431342,1.79776896,88821.0,88820.0,0.00051924]
[1764954431547,1.79776896,88821.0,88810.0,0.0004]
[1764954431548,2.54819732,88811.0,88810.0,0.0004]
[1764954431785,2.57059131,88811.0,88810.0,0.00051925]
[1764954432044,0.01125872,88820.0,88810.0,0.00051925]
[1764954432241,0.00049,88811.0,88810.0,0.00051925]
[1764954432445,0.0495,88819.0,88810.0,0.01177924]
[1764954432646,0.0495,88819.0,88813.0,0.01125961]
[1764954432647,0.23644273,88817.0,88813.0,0.01125961]
[1764954432928,0.23644273,88817.0,88810.0,0.00051925]
[1764954432929,0.00049,88811.0,88810.0,0.00051925]
[1764954433055,0.02239399,88811.0,88810.0,0.00051925]
[1764954433261,0.07140399,88811.0,88810.0,0.00051925]
[1764954433464,0.07640399,88811.0,88810.0,0.00051925]
[1764954433684,0.962971,88811.0,88810.0,0.00051925]
[1764954433927,0.651773,88811.0,88810.0,0.00051925]
[1764954434132,0.651773,88811.0,88810.0,0.00649364]
[1764954434338,0.668773,88811.0,88810.0,0.00649364]
[1764954434542,0.68086641,88811.0,88810.0,0.00649364]
[1764954434750,0.621321,88811.0,88810.0,0.00649364]
[1764954435122,0.64322499,88811.0,88810.0,0.00649364]
[1764954435324,0.621321,88811.0,88810.0,0.00649364]
[1764954435581,0.64322499,88811.0,88810.0,0.00649364]
[1764954436119,0.64322499,88811.0,88800.0,0.0004]
[1764954436120,1.20615267,88801.0,88800.0,0.0004]
[1764954436370,0.90233568,88801.0,88800.0,0.00079571]
[1764954436605,0.94223967,88801.0,88800.0,0.00079571]
[1764954437444,0.54824805,88791.0,88790.0,0.0004]
[1764954437646,2.14602639,88791.0,88790.0,0.0004]
[1764954437777,2.21694038,88791.0,88790.0,0.0004]
[1764954437977,2.10479838,88791.0,88790.0,0.0004]
[1764954438182,2.21450344,88791.0,88790.0,0.0004]
[1764954438583,2.57017741,88781.0,88761.0,0.0112662]
[1764954438803,1.36645741,88781.0,88758.0,0.2253296]
[1764954439005,1.39356342,88781.0,88758.0,0.01126659]
[1764954439368,1.41546741,88781.0,88746.0,0.01126811]
[1764954439544,0.5482988,88771.0,88740.0,0.0004]
[1764954439742,0.01126697,88755.0,88749.0,0.01126773]
[1764954439919,0.323,88770.0,88745.0,0.01126824]
[1764954439920,0.01126684,88756.0,88745.0,0.01126824]
[1764954440126,0.01126697,88755.0,88741.0,0.04529]
[1764954440358,0.01126785,88748.0,88744.0,0.01126836]
[1764954440515,0.00161287,88755.0,88746.0,0.22536166]
[1764954440516,0.0112676,88750.0,88746.0,0.22536166]
[1764954440713,0.001,88771.0,88763.0,0.01126595]
[1764954440922,0.54830508,88769.0,88764.0,0.01126582]
[1764954441125,0.32439634,88771.0,88766.0,0.22530878]
[1764954441366,0.32439634,88771.0,88769.0,0.22530239]
[1764954441367,0.00039634,88771.0,88769.0,0.22530239]
[1764954442220,0.00039634,88771.0,88770.0,0.06252299]
[1764954443149,0.00039634,88771.0,88769.0,0.28782539]
[1764954443563,0.00039634,88771.0,88770.0,0.21846299]
[1764954443763,0.00039634,88771.0,88770.0,0.24038472]
[1764954444202,0.00039634,88771.0,88770.0,0.08152299]
[1764954445014,0.00039634,88771.0,88770.0,0.001]
[1764954445260,0.00039634,88771.0,88769.0,0.22530321]
[1764954445612,0.00039634,88771.0,88769.0,0.22730321]
[1764954445811,0.00039634,88771.0,88770.0,0.06252299]
[1764954446035,0.00039634,88771.0,88770.0,0.23820186]
[1764954446258,0.00039634,88771.0,88770.0,0.23950299]
[1764954446457,0.00039634,88771.0,88770.0,0.21746299]
[1764954446832,0.00039634,88771.0,88770.0,0.24238472]
[1764954447242,0.00039634,88771.0,88770.0,0.23850299]
[1764954447444,0.00039634,88771.0,88770.0,0.26042472]
[1764954447741,0.00039634,88771.0,88770.0,0.23550299]
[1764954447925,0.00039634,88771.0,88770.0,0.25742472]
[1764954448144,0.00039634,88771.0,88770.0,0.26142472]
[1764954448870,0.00139634,88771.0,88770.0,0.28242472]
[1764954449805,0.00139634,88771.0,88770.0,0.27842472]
[1764954450212,0.00139634,88771.0,88770.0,0.28342472]
[1764954450421,0.36268,88809.0,88808.0,0.22520493]
[1764954450422,0.323,88809.0,88808.0,0.22520493]
[1764954450642,0.323,88809.0,88808.0,0.22532425]
[1764954450849,0.04541,88820.0,88817.0,0.2364398]
[1764954451049,0.02814713,88819.0,88815.0,0.23644529]
[1764954451249,0.02814713,88819.0,88816.0,0.01125923]
[1764954451469,0.0112591,88817.0,88808.0,0.00011932]
[1764954451722,0.22520096,88810.0,88808.0,0.00011932]
[1764954451960,0.0281503,88809.0,88808.0,0.00011932]
[1764954452971,0.02976317,88809.0,88808.0,0.00011932]
[1764954453330,0.03576317,88809.0,88808.0,0.00011932]
[1764954454939,0.10881498,88809.0,88808.0,0.00011932]
[1764954455154,0.10881498,88809.0,88808.0,0.22617231]
[1764954455155,0.006,88809.0,88808.0,0.22617231]
[1764954455481,0.006,88809.0,88808.0,0.06264231]
[1764954455709,0.006,88809.0,88808.0,0.00011932]
[1764954456320,0.03576317,88809.0,88808.0,0.00011932]
[1764954456524,0.03025317,88809.0,88808.0,0.00011932]
[1764954456728,0.02976317,88809.0,88808.0,0.00011932]
[1764954456876,0.00161287,88809.0,88808.0,0.00011932]
[1764954457077,0.22519112,88814.0,88808.0,0.00011932]
[1764954457292,0.22520052,88810.0,88808.0,0.00011932]
[1764954457497,0.0281503,88809.0,88808.0,0.00011932]
[1764954458526,0.25335096,88810.0,88808.0,0.00011932]
[1764954458696,0.01125961,88813.0,88810.0,0.23645851]
[1764954458930,0.02386771,88824.0,88817.0,0.0112591]
[1764954459133,0.03934,88840.0,88807.0,0.01126037]
[1764954459134,0.01125973,88812.0,88807.0,0.01126037]
[1764954459346,0.01125986,88811.0,88807.0,0.2252073]
[1764954459551,0.01125973,88812.0,88806.0,0.0112605]
[1764954459693,0.23644263,88817.0,88810.0,0.01125999]
[1764954459694,0.3342591,88817.0,88810.0,0.01125999]
[1764954459902,0.0112591,88817.0,88814.0,0.23644894]
[1764954460095,0.5594403,88818.0,88813.0,0.01125961]
[1764954460366,0.0495,88814.0,88810.0,0.22519986]
[1764954460511,0.02190399,88816.0,88814.0,0.22518828]
[1764954460720,0.33425897,88818.0,88814.0,0.22518828]
[1764954461005,0.323,88819.0,88815.0,0.23644597]
[1764954461219,0.323,88819.0,88814.0,0.01125948]
[1764954461431,0.22519568,88812.0,88809.0,0.01126012]
[1764954461633,0.01125986,88811.0,88807.0,0.23646677]
[1764954461818,0.22520042,88810.0,88807.0,0.06252299]
[1764954462054,0.01125973,88812.0,88809.0,0.01126012]
[1764954462266,0.03197213,88811.0,88810.0,0.01125999]
[1764954462490,0.25716984,88811.0,88808.0,0.23658411]
[1764954462726,0.01125973,88812.0,88809.0,0.01126012]
[1764954462927,0.03940907,88812.0,88809.0,0.01126012]
[1764954463134,0.54818449,88817.0,88813.0,0.01125961]
[1764954463320,0.23645198,88813.0,88809.0,0.01126012]
[1764954463577,0.03940907,88812.0,88809.0,0.01126012]
[1764954463787,0.02814934,88812.0,88810.0,0.22519883]
[1764954464064,0.01125961,88813.0,88810.0,0.23645898]
[1764954464299,0.23645883,88811.0,88808.0,0.00011932]
[1764954464511,0.23807277,88813.0,88810.0,0.22519957]
[1764954464731,0.03940907,88812.0,88808.0,0.01137956]
[1764954464941,0.01125986,88811.0,88808.0,0.01137956]
[1764954465152,0.23645722,88811.0,88808.0,0.01137956]
[1764954465376,0.2252024,88809.0,88808.0,0.00011932]
[1764954466059,0.01125986,88811.0,88808.0,0.22532388]
[1764954466274,0.23645832,88811.0,88808.0,0.22532388]
[1764954466482,0.22520084,88810.0,88808.0,0.00011932]
[1764954466641,0.01125973,88812.0,88810.0,0.22519983]
[1764954466824,0.02814934,88812.0,88810.0,0.22519983]
[1764954467023,0.01125986,88811.0,88808.0,0.00011932]
[1764954467229,0.2747024,88809.0,88808.0,0.00011932]
[1764954467430,0.27631527,88809.0,88808.0,0.00011932]
[1764954468057,0.27680527,88809.0,88808.0,0.00011932]
[1764954468435,0.29870926,88809.0,88808.0,0.00011932]
[1764954468656,1.54963164,88809.0,88808.0,0.00011932]
[1764954468857,1.58384594,88809.0,88808.0,0.00011932]
[1764954469307,1.59152533,88809.0,88808.0,0.00011932]
[1764954469504,1.59152533,88809.0,88772.0,0.01126481]
[1764954469505,0.23654117,88780.0,88772.0,0.01126481]
[1764954469729,0.01126341,88783.0,88779.0,0.01126392]
[1764954469840,0.01126341,88783.0,88773.0,0.22529266]
[1764954469841,0.22528103,88778.0,88773.0,0.22529266]
[1764954470047,0.01126443,88775.0,88772.0,0.22541458]
[1764954470345,0.01126392,88779.0,88775.0,0.22528716]
[1764954470516,0.03968,88790.0,88783.0,0.22526835]
[1764954470818,0.01126291,88787.0,88782.0,0.01126354]
[1764954470960,0.03968,88790.0,88785.0,0.01126316]
[1764954471160,0.03968,88797.0,88790.0,0.01126252]
[1764954471369,0.03968,88797.0,88788.0,0.22525566]
[1764954471370,0.02982668,88808.0,88806.0,0.22521]
[1764954471604,0.01126126,88800.0,88797.0,0.22523034]
[1764954471808,0.01126113,88801.0,88798.0,0.28775314]
[1764954472008,0.01126088,88803.0,88798.0,0.29901465]
[1764954472216,0.0281522,88803.0,88800.0,0.01126126]
[1764954472459,0.01126151,88798.0,88792.0,0.04941]
[1764954472661,0.01126151,88798.0,88796.0,0.22523507]
[1764954472832,0.01126151,88798.0,88796.0,0.22523455]
[1764954473035,0.01126164,88797.0,88794.0,0.06252299]
[1764954473235,0.01126151,88798.0,88795.0,0.23649978]
[1764954473440,0.23648666,88800.0,88797.0,0.2364941]
[1764954473667,0.23648994,88799.0,88796.0,0.23649636]
[1764954473866,0.01126138,88799.0,88795.0,0.01126189]
[1764954474082,0.2364894,88799.0,88796.0,0.22523518]
[1764954474269,0.2364894,88799.0,88794.0,0.23650246]
[1764954474270,0.01126151,88798.0,88793.0,0.01126214]
[1764954474469,0.23649812,88796.0,88792.0,0.00011932]
[1764954474676,0.23650227,88795.0,88792.0,0.00011932]
[1764954474877,0.22524298,88793.0,88792.0,0.00011932]
[1764954475051,0.01126189,88795.0,88792.0,0.00011932]
[1764954475252,0.01526164,88797.0,88794.0,0.01126202]
[1764954475463,0.01126138,88799.0,88793.0,0.01126214]
[1764954475464,0.23649867,88796.0,88793.0,0.01126214]
[1764954475667,0.01526176,88796.0,88792.0,0.01138159]
[1764954475865,0.01126189,88795.0,88792.0,0.06264231]
[1764954476099,0.01126151,88798.0,88793.0,0.22524045]
[1764954476243,0.01126151,88798.0,88795.0,0.01126189]
[1764954476447,0.22523659,88796.0,88793.0,0.22524274]
[1764954476648,0.323,88806.0,88803.0,0.22521761]
[1764954476862,0.0509391,88817.0,88808.0,0.22520493]
[1764954477111,0.03968,88804.0,88802.0,0.011261]
[1764954477321,0.03968,88804.0,88799.0,0.01126138]
[1764954477322,0.05094075,88804.0,88800.0,0.01126126]
[1764954477514,0.05094075,88804.0,88791.0,0.06252299]
[1764954477515,0.01126189,88795.0,88792.0,0.06264231]
[1764954477762,0.22524044,88794.0,88792.0,0.00011932]
[1764954477964,0.27474298,88793.0,88792.0,0.00011932]
[1764954478148,0.59823298,88793.0,88792.0,0.00011932]
[1764954478372,1.31945298,88793.0,88792.0,0.00011932]
[1764954478527,1.4530967,88793.0,88792.0,0.00011932]
[1764954478897,1.45106203,88793.0,88792.0,0.00011932]
[1764954479304,1.45906203,88793.0,88792.0,0.00011932]
[1764954479709,1.34935697,88793.0,88792.0,0.00011932]
[1764954479919,1.37330394,88793.0,88792.0,0.00011932]
[1764954480126,1.38369728,88793.0,88792.0,0.00011932]
[1764954480335,1.38369728,88793.0,88741.0,0.04941]
[1764954480336,0.01126811,88746.0,88741.0,0.04941]
[1764954480548,0.01126773,88749.0,88741.0,0.00039634]
[1764954480549,0.23663587,88744.0,88741.0,0.00039634]
[1764954480760,0.04131,88742.0,88741.0,0.00039634]
[1764954481193,0.02190399,88745.0,88741.0,0.16270634]
[1764954481401,0.323,88757.0,88746.0,0.01126811]
[1764954481402,0.22534489,88753.0,88746.0,0.01126811]
[1764954481607,0.01126735,88752.0,88748.0,0.01126785]
[1764954481833,0.01126697,88755.0,88750.0,0.0112676]
[1764954482041,0.37590671,88757.0,88745.0,0.01126824]
[1764954482042,0.0112676,88750.0,88745.0,0.01126824]
[1764954482266,0.22737242,88742.0,88741.0,0.00539634]
[1764954482490,0.61691242,88742.0,88741.0,0.00539634]
[1764954482712,0.56837242,88742.0,88741.0,0.00539634]
[1764954482980,0.27536242,88742.0,88741.0,0.00039634]
[1764954483186,0.0495,88742.0,88741.0,0.00039634]
[1764954483402,0.22536988,88743.0,88741.0,0.00039634]
[1764954483403,0.33426836,88744.0,88741.0,0.00039634]
[1764954483608,0.0495,88742.0,88741.0,0.00039634]
[1764954483849,0.07140399,88742.0,88741.0,0.00039634]
[1764954484063,0.39650686,88742.0,88741.0,0.00039634]
[1764954484300,1.85263492,88742.0,88741.0,0.00039634]
[1764954484507,1.32038992,88742.0,88741.0,0.00039634]
[1764954484717,1.29848593,88742.0,88741.0,0.00039634]
[1764954484922,0.89857293,88742.0,88741.0,0.00039634]
[1764954485152,0.89957293,88742.0,88741.0,0.00039634]
[1764954485580,0.91752793,88742.0,88741.0,0.00039634]
[1764954485981,0.91652793,88742.0,88741.0,0.00039634]
[1764954486323,0.93943192,88742.0,88741.0,0.00039634]
[1764954487139,0.85733593,88742.0,88741.0,0.00039634]
[1764954487268,0.87923992,88742.0,88741.0,0.00039634]
[1764954487471,0.74767087,88742.0,88741.0,0.00039634]
[1764954488195,0.39306787,88742.0,88741.0,0.00039634]
[1764954488393,0.39355787,88742.0,88741.0,0.00039634]
[1764954488603,1.05155486,88742.0,88741.0,0.00039634]
[1764954488809,0.32661287,88742.0,88741.0,0.00039634]
[1764954489013,0.002,88742.0,88741.0,0.20932634]
[1764954489215,0.001,88742.0,88741.0,0.04983634]
[1764954489581,0.001,88742.0,88741.0,0.27184933]
[1764954489838,0.001,88742.0,88741.0,0.29377106]
[1764954490071,0.001,88742.0,88741.0,0.27184933]
[1764954490251,0.001,88742.0,88741.0,0.17668933]
[1764954490452,0.01126747,88751.0,88747.0,0.01126798]
[1764954490606,0.02816901,88750.0,88747.0,0.23662645]
[1764954490820,0.01126633,88760.0,88754.0,0.01126709]
[1764954491018,0.01126633,88760.0,88749.0,0.01126773]
[1764954491019,0.01126709,88754.0,88749.0,0.01126773]
[1764954491219,0.02816806,88753.0,88749.0,0.01126773]
[1764954491440,0.02816806,88753.0,88751.0,0.22534832]
[1764954491637,0.23658772,88762.0,88757.0,0.23659984]
[1764954491849,0.02816552,88761.0,88760.0,0.01126633]
[1764954492051,0.22528226,88778.0,88763.0,0.2253191]
[1764954492248,0.00099999,88800.0,88777.0,0.01126417]
[1764954492249,0.23653603,88782.0,88777.0,0.01126417]
[1764954492532,0.01126265,88789.0,88781.0,0.01126367]
[1764954492739,0.01126265,88789.0,88769.0,0.04941]
[1764954492740,0.22528643,88776.0,88769.0,0.04941]
[1764954492956,0.01126557,88766.0,88763.0,0.01126595]
[1764954493164,0.01126468,88773.0,88767.0,0.22530895]
[1764954493333,0.07545529,88772.0,88769.0,0.01126519]
[1764954493538,0.33426455,88774.0,88770.0,0.23656485]
[1764954493742,0.22529541,88773.0,88769.0,0.01126519]
[1764954494203,0.04292287,88776.0,88770.0,0.01126506]
[1764954494410,0.323,88775.0,88770.0,0.2365647]
[1764954494659,0.01126468,88773.0,88769.0,0.002]
[1764954494865,0.32461287,88775.0,88772.0,0.22529626]
[1764954495097,0.32461287,88775.0,88769.0,0.04941]
[1764954495098,0.23652003,88788.0,88784.0,0.01126329]
[1764954495306,0.13188,88794.0,88789.0,0.01126265]
[1764954495307,0.01126227,88792.0,88789.0,0.01126265]